Cogmind - Beta 14 @@@ ROGUE MODE // 2024.09.08 @ 13:36:37 Player: jimmyl Result: Destroyed by D-53 Grenadier with Mini Grenade Launcher Performance ------------- Evolutions (0) 0 Regions Visited (2) 400 Robots Destroyed (10) 50 Value Destroyed (284) 284 Prototype IDs (0) 0 Alien Tech Used (0) 0 Bonus (7) 7 TOTAL SCORE: 741 Bonus ------- Follower Combat Kills 7 Cogmind --------- Core Integrity 0/250 Matter 300/300 Energy 100/100 System Corruption 0% Temperature Cool (0) Movement Core (350) Ox6 Location -10/Mines Parts ------- > --- POWER (1) -------- (None) > --- PROPULSION (2) --- (None) > --- UTILITY (2) ------ Large Storage Unit > --- WEAPON (2) ------- Light Assault Rifle > --- INVENTORY (15) --- Ion Engine Ion Engine Wheel Wheel Improved Heat Sink Large Storage Unit Signal Interpreter EM Pulse Gun Beam Cannon Light Assault Rifle Light Assault Rifle Peak State ------------ > --- POWER ------------ Light Ion Engine > --- PROPULSION ------- Light Treads Light Treads > --- UTILITY ---------- Small Storage Unit Visual Processing Unit > --- WEAPON ----------- Assault Rifle Light Assault Rifle > --- INVENTORY -------- Ion Engine Ion Engine Wheel Wheel Improved Heat Sink Signal Interpreter EM Pulse Gun Beam Cannon [Rating: 9] Favorites ----------- Power Light Ion Engine Engine Light Ion Engine Propulsion Light Treads Treads Light Treads Leg Aluminum Leg Utility Large Storage Unit Device Seismic Detector Storage Large Storage Unit Processor Visual Processing Unit Weapon Light Assault Rifle Energy Gun EM Pulse Gun Ballistic Gun Light Assault Rifle Build | -11 -10 -10 ------- Run | Yrd Mat Min Slots Evolved . | . . . Power . | . . . Propulsion . | . . . Utility . | . . . Weapon . | . . . Parts Attached 7 | . 7 . Power . | . . . Engine . | . . . Core . | . . . Reactor . | . . . Propulsion 3 | . 3 . Treads 3 | . 3 . Leg . | . . . Wheel . | . . . Hover . | . . . Flight . | . . . Utility 3 | . 3 . Device 1 | . 1 . Storage 1 | . 1 . Processor 1 | . 1 . Hackware . | . . . Protection . | . . . Artifact . | . . . Weapon 1 | . 1 . Energy Gun . | . . . Energy Cannon . | . . . Ballistic Gun 1 | . 1 . Ballistic Cannon . | . . . Launcher . | . . . Special Weapon . | . . . Impact Weapon . | . . . Slashing Weapon . | . . . Piercing Weapon . | . . . Special Melee Weapon . | . . . Unidentified Prototypes . | . . . Parts Lost 5 | . . 5 Power 1 | . . 1 Propulsion 2 | . . 2 Utility 1 | . . 1 Weapon 1 | . . 1 Highest Loss Streak 5 | . . 5 To Critical Strikes . | . . . Average Slot Usage (%) 97 | . 96 99 Engine 13 | . 14 13 Treads 27 | . 26 28 Device 8 | . 5 14 Storage 14 | . 14 14 Processor 3 | . 5 . Ballistic Gun 27 | . 26 28 Peak Build Rating 9 | . 9 8 Average Rating 7 | . 7 7 On Entrance 6 | 6 6 8 Naked Turns . | . . . Heaviest Build 27 | 11 27 27 Greatest Support 40 | 20 40 40 Greatest Overweight (x) 1 | . . 1 Average Overweight (x) . | . . . Largest Inventory Capacity 15 | . 15 15 Average Capacity 12 | . 11 15 Most Carried 11 | . 11 11 Average Carried 9 | . 8 11 Final Capacity 15 | 8 15 15 Final Carried 11 | 6 11 11 Class Distribution -------------------- 100% | Mutant Dominant Class ---------------- Mutant | -10/Materials Mutant | -10/Mines Resources | -11 -10 -10 ----------- Run | Yrd Mat Min Matter Collected 478 | 200 261 17 Remotely . | . . . Salvage Created 419 | . 419 . Parts 25 | . 25 . Haulers Intercepted 2 | . 2 . Recyclers Shooed 1 | . 1 . Parts Field Recycled . | . . . Retrieved Matter . | . . . Parts Self-Destructed . | . . . Prevented . | . . . Kills | -11 -10 -10 ------- Run | Yrd Mat Min Combat Hostiles Destroyed 7 | . 7 . Guns 7 | . 7 . Classes Destroyed 3 | . 3 . Hauler 2 | . 2 . Watcher 1 | . 1 . Grunt 7 | . 7 . Best Kill Streak 2 | . 2 . Combat Bots Only 2 | . 2 . Max Kills in Single Turn 1 | . 1 . Gunslinging . | . . . Exploded . | . . . Melee . | . . . Uniques/NPCs Destroyed . | . . . Combat | -11 -10 -10 -------- Run | Yrd Mat Min Hostile Shots Fired 52 | . 37 15 Missed 11 | . 10 1 Damage Taken 854 | . 393 461 Core 258 | . 110 148 Absorbed by Shields . | . . . Core Remaining (%) 100 | 100 . . Volleys Fired 56 | . 52 4 Largest 2 | . 2 2 Hottest 40 | . 40 40 Shots Fired 111 | . 104 7 Gun 111 | . 104 7 Cannon . | . . . Launcher . | . . . Special . | . . . Kinetic 111 | . 104 7 Thermal . | . . . Explosive . | . . . Electromagnetic . | . . . Robot Hit Streak 11 | . 11 3 Robot Miss Streak 5 | . 5 3 Penetration Max . | . . . Secondary Targets . | . . . Shots Hit Robots 70 | . 67 3 Core Hits 26 | . 25 1 Critical Kills . | . . . Critical Parts Destroyed . | . . . Critical Strikes . | . . . Melee Attacks . | . . . Impact . | . . . Slashing . | . . . Piercing . | . . . Sneak Attacks . | . . . Combat Hostiles . | . . . Follow-up Attacks . | . . . Damage Inflicted 699 | . 669 30 Guns 695 | . 665 30 Cannons . | . . . Explosions . | . . . Melee . | . . . Ramming 4 | . 4 . Kinetic 695 | . 665 30 Thermal . | . . . Explosive . | . . . Electromagnetic . | . . . Impact . | . . . Slashing . | . . . Piercing . | . . . Highest Corruption . | . . . Average Corruption . | . . . Corruption Purged . | . . . Corruption Blocked . | . . . Overload Shots . | . . . Overflow Damage . | . . . Projectiles . | . . . Explosions . | . . . Melee . | . . . Knockbacks . | . . . Impact . | . . . Kinetic . | . . . Secondary . | . . . Self-Inflicted Damage . | . . . Shots . | . . . Rammed 1 | . 1 . Targets Rammed 1 | . 1 . Kicked . | . . . Crushed . | . . . Highest Temperature 27 | . 27 . Average Temperature 10 | . 10 . Received Heat Transfer 216 | . 216 . Siege Activations . | . . . Robots Corrupted . | . . . Combat Hostiles . | . . . Parts Fried . | . . . Impact Corruptions . | . . . Robots Melted . | . . . Combat Hostiles . | . . . Parts Melted . | . . . Heat Transferred . | . . . Parts Sabotaged . | . . . Parts Stolen . | . . . Parts Stripped . | . . . Power Chain Reactions . | . . . Alert | -11 -10 -10 ------- Run | Yrd Mat Min Peak Influence 214 | . 214 69 Initial 7 | . . 7 Average 74 | . 86 52 Maximum Alert Level 1 | . 1 . Low Security (%) 84 | . 76 100 Level 1 15 | . 23 . Level 2 . | . . . Level 3 . | . . . Level 4 . | . . . Level 5 . | . . . High Security . | . . . Max Security . | . . . Squads Dispatched 1 | . 1 . Investigation . | . . . Extermination . | . . . Reinforcement 1 | . 1 . Assault . | . . . Garrison . | . . . Intercept . | . . . Searches Triggered . | . . . Construction Impeded . | . . . Haulers Reinforced . | . . . Active Scanning Responses . | . . . Cargo Convoy Interrupts . | . . . Stealth | -11 -10 -10 --------- Run | Yrd Mat Min Distress Signals 2 | . 2 . Communications Jammed . | . . . Distress Signals . | . . . Times Spotted 18 | . 13 5 Peak Tracking Total 5 | . 5 3 Tactical Retreats 1 | . . 1 Traps | -11 -10 -10 ------- Run | Yrd Mat Min Traps Triggered . | . . . Indirectly . | . . . Trap Hack Attempts . | . . . Triggered . | . . . Disarmed . | . . . Reprogrammed . | . . . Reused . | . . . Traps Extracted . | . . . Installed . | . . . Triggered . | . . . Machines | -11 -10 -10 ---------- Run | Yrd Mat Min Machines Disabled . | . . . Max in Single Turn . | . . . Machines Repaired . | . . . Machines Dismantled . | . . . Machines Sabotaged . | . . . Overloaded Fab Kills . | . . . Hacking | -11 -10 -10 --------- Run | Yrd Mat Min Machines Accessed . | . . . Terminals . | . . . Fabricators . | . . . Repair Stations . | . . . Recycling Units . | . . . Scanalyzers . | . . . Garrison Access . | . . . Total Hacks . | . . . Successful . | . . . Failed . | . . . Catastrophic . | . . . Database Lockouts . | . . . Manual . | . . . Terminals . | . . . Fabricators . | . . . Repair Stations . | . . . Recycling Units . | . . . Scanalyzers . | . . . Garrison Access . | . . . Terminal Hacks . | . . . Fabricator Hacks . | . . . Repair Station Hacks . | . . . Recycling Unit Hacks . | . . . Scanalyzer . | . . . Garrison Access Hacks . | . . . Unauthorized Hacks . | . . . Terminals . | . . . Fabricators . | . . . Repair Stations . | . . . Recycling Units . | . . . Scanalyzers . | . . . Garrison Access . | . . . Data Cores Recovered . | . . . Used . | . . . Hacking Detections . | . . . Full Trace Events . | . . . Feedback Events . | . . . Feedback Blocked . | . . . Robot Schematics Acquired . | . . . Robots Built . | . . . Authchips . | . . . Time . | . . . Total Robot Build Rating . | . . . Part Schematics Acquired . | . . . Parts Built . | . . . Authchips . | . . . Time . | . . . Total Part Build Rating . | . . . Parts Repaired . | . . . Time . | . . . Parts Recycled . | . . . Recycled Matter . | . . . Retrieved Matter . | . . . Retrieved Components . | . . . Parts Scanalyzed . | . . . Part Schematics Acquired . | . . . Parts Damaged . | . . . Bothacking | -11 -10 -10 ------------ Run | Yrd Mat Min Used RIF Installer . | . . . Robots Hacked . | . . . Non-combat . | . . . Combat . | . . . Robot Hacks Applied . | . . . Relay Couplers Released . | . . . Fabnet Peak Effective % . | . . . Robots Rewired . | . . . Allies Hacked . | . . . Hacks Repelled . | . . . Allies | -11 -10 -10 -------- Run | Yrd Mat Min Total Allies 1 | . . 1 Largest Group 1 | . . 1 Highest-Rated Group 31 | . . 31 Highest-Rated Ally 31 | . . 31 Total Orders . | . . . Ally Attacks 3 | . . 3 Total Damage 42 | . . 42 Kills 1 | . . 1 Allies Corrupted . | . . . Allies Melted . | . . . Intel | -11 -10 -10 ------- Run | Yrd Mat Min Robot Analysis Total . | . . . Derelict Logs Recovered . | . . . Drone Launches . | . . . Drone Recoveries . | . . . Exploration | -11 -10 -10 ------------- Run | Yrd Mat Min Turns Passed 907 | . 590 317 Spaces Moved 406 | 1 239 166 Core . | . . . Treads 377 | . 211 166 Legs 29 | 1 28 . Wheels . | . . . Hover . | . . . Flight . | . . . Fastest Speed 120 | 120 120 160 Average Speed 157 | 120 155 160 Slowest Speed 240 | 120 160 240 Overloaded Moves . | . . . Propulsion Burnouts . | . . . Robots Hopped . | . . . Cave-ins Triggered . | . . . Exploration Rate (%) 27 | 2 43 36 Regions Visited 2 Branch Regions 1 Pre-discovered Areas . | . . . Known Exits Taken . | . . . Unknown Exits Taken 2 | 1 1 . Scrap Searched . | . . . Spaces Dug . | . . . Terrain Destroyed . | . . . Melee . | . . . Projectile . | . . . AOE . | . . . Terrain Rammed . | . . . Walls Destroyed . | . . . Machines Disabled . | . . . Actions | -11 -10 -10 --------- Run | Yrd Mat Min Total 575 | . 364 211 Wait 95 | . 54 41 Move 404 | . 238 166 Hop . | . . . Pick Up 7 | . 7 . Fast Attach 2 | . 2 . Attach 2 | . 2 . Detach . | . . . Swap 3 | . 3 . Drop 5 | . 5 . Fire 56 | . 52 4 Melee . | . . . Ram . | . . . Kick . | . . . Crush 1 | . 1 . Escape Stasis . | . . . Rewire . | . . . Trap . | . . . Miscellaneous . | . . . Route ------- -11/Scrapyard -10/Materials (discovered 2 exits: [*Mat] / [*Min]) -10/Mines (discovered 3 exits: [*Mat x2] / [*Exi]) History --------- Turn | Location | Event 1 | -11/Scrapyard | Discovered new exit (range 0) 1 | -11/Scrapyard | Entered Materials 300 | -10/Materials | Build established: Mutant 400 | -10/Materials | Discovered new exit (range 11) 583 | -10/Materials | Discovered new exit (range 6) 591 | -10/Materials | Entered Mines 594 | -10/Mines | Received a Mining Laser from a helpful Derelict 674 | -10/Mines | Discovered new exit (range 5) 732 | -10/Mines | Discovered new exit (range 10) 805 | -10/Mines | Deemed a non-threat by the Exiles lab entrance 805 | -10/Mines | Discovered new exit (range 5) 883 | -10/Mines | Assembled infested the area 901 | -10/Mines | Core integrity fell below 50% 907 | -10/Mines | Core integrity fell below 20% 908 | -10/Mines | Destroyed by D-53 Grenadier with Mini Grenade Launcher Last Messages --------------- 00674_ Acquired 17 matter. 00674_ EXIT=FOUND 00717_ K-01 Serf collects debris. 00732_ EXIT=FOUND 00768_ K-01 Serf collects debris. 00805_ "No threat detected, you may enter." 00805_ EXIT=FOUND 00850_ RE-VE7(g): "You look like you can take it from here!" 00850_ RE-VE7(g) slips back into the shadows. 00883_ ALERT: Infestation in the mines, dispatching Demolisher response squad. 00898_ C-30 ARC bursts open, deploying its payload. 00898_ D-53 Grenadier unfolds itself. 00898_ Lgt. Ion Engine destroyed. 00902_ Lgt. Treads destroyed. 00904_ Assault Rifle destroyed. 00906_ Seismic Detector destroyed. 00908_ The unstable cave ceiling collapses. 00908_ Lgt. Treads destroyed. Map ----- +----------------------------------------------------+ | ?????????????????????????????????????????????????? | | ?????????????????????????????????????????????????? | | ?????????????????????????????????????????????????? | | ?????????????????????????????????????????????????? | | ?????????????????????????????????????????????????? | | ?????????????????????????????????????????????????? | | ?????????????????????????????????????????????????? | | ?????????????????????????????????????????????????? | | ?????????????????????????????????????????????????? | | ????????????????????????????????##???????????????? | | ???????????????????????????????? ????????????????? | | ??????????????????????????????? ????????????????? | | ??????????????????????????????? ?????????????????? | | ???????????????????????????#### ?????????????????? | | ???????????????????????????# ??????????????????? | | ???????????????????????????# ??????????????????? | | ??????????????????????# #### #??????????????????? | | ??????????????????????# #??????#???????????? | | ??????????????????????###### ##???? #???????????? | | ???????????????????????###### #### #???????????? | | ??????????????????????## #???????????? | | ?????????????????????## #???????????? | | ???????????????????### ######???????????? | | ???????????????????# ##???????????????? | | ???????????????????# #???????????????? | | ?????##########????# @ #???????????????? | | ??#### ##??## ##???????????????? | | ?## #### ##????????????????? | | ?# ###?????????????????? | | ?# ### # d#???????????????????? | | ?## #### ##?#### %###???###????????#### | | ??####???## #?????# d #??## ##?????## # | | ??????????## #?????####u#??#! ##????# | | ???????????## #????????# #??? ##??## | | ????????????## #????????# #???? = ##?# | | ?????????????### #????????# #????# #?# | | | ???????????????#### #????????# #????# #?## | | ??????????????????# ###??????# #???## #???# | | ??????????????????# ##?????# ##### ####### | | ??????????????????### #?????# ## | | ????????????????????# ##?????## #### #### | | ???????????????????? #???????# #??#[ ##### #### | | ???????????????????? ##???????# #?## #???# | | ???????????????????< ?????????# ### #???# | | ???????????????????##??????# [# ##???####### | | ??????????????????????????# < %=##??????????? | | ??????????????????????????# ##???????????? | | ??????????????????????????## ##????????????? | | ???????????????????????????#########?????????????? | | ?????????????????????????????????????????????????? | +----------------------------------------------------+ Best States ------------- Heat Dissipation 25 Energy Generation 10 Energy Capacity 125 Matter Stores 300 Matter Capacity 300 Sight Range 18 Terrain Scan Density 10 Evasion (%) 55 Recoil Reduction 2 Item Schematics ----------------- None Robot Schematics ------------------ None Fabricated ------------ Nothing Alien Tech Used ----------------- None Achievements -------------- None Challenges ------------ None Game ------ Seed TripodMiningShovel Manual? 0 Play Time 00:08:01 Cumulative 125.8 hours Start 2024.09.08 @ 13:26:27 End 2024.09.08 @ 13:36:37 Sessions 1 Manual Loads 0 Difficulty Rogue Special Mode None Game No. 205 Rogue 204 Adventurer 1 Explorer 0 Win Type - Total 1 Types 1/0/0/0/0/0/0/0/0 Lore% 64 Gallery% 67 Achievement% 50 Wizard Run 0 Options --------- Layout 1 ASCII 0 Keyboard 0 Movement Mouse Keybinds 0 Fullscreen 2 Font 20/SmallcapsGlow Map View 54x42 Zoom Use 0% Tactical HUD 1 Map Filters NONE Filters NONE Steam 0 RUN: d66a84a1-9ed0-4aea-b2d1-72de00fd0f67